bitfinex/quotes_ETHUSD_20241030
["timestamp","ask_amount","ask_price","bid_price","bid_amount"]
[1730301397652,3.71025,2695.3,2695.0,0.0536]
[1730301397852,3.71043,2695.1,2695.0,0.0536]
[1730301398146,7.8336554,2695.1,2695.0,0.0536]
[1730301398353,8.6047554,2695.1,2695.0,0.0536]
[1730301398766,9.1547554,2695.1,2695.0,0.0536]
[1730301398924,8.6047554,2695.1,2695.0,0.0536]
[1730301400253,7.8336554,2695.1,2695.0,0.0536]
[1730301403097,8.6334554,2695.1,2695.0,0.0536]
[1730301405170,12.1834554,2695.1,2695.0,0.0536]
[1730301406503,11.6334554,2695.1,2695.0,0.0536]
[1730301407293,7.8336554,2695.1,2695.0,0.0536]
[1730301410121,3.71043,2695.1,2695.0,0.0536]
[1730301412221,4.1232254,2695.7,2695.0,0.0536]
[1730301412421,0.38590648,2695.8,2695.1,0.82490026]
[1730301412585,7.8321754,2696.2,2695.1,0.7507]
[1730301412885,0.763,2696.4,2695.1,0.7507]
[1730301412886,3.70988,2695.6,2695.1,0.7507]
[1730301413084,3.70986,2695.6,2695.1,0.7507]
[1730301413297,3.70957,2695.8,2695.1,0.7507]
[1730301413493,3.70982,2695.6,2695.1,0.7507]
[1730301413715,3.70947,2695.8,2695.1,0.7507]
[1730301413883,3.70976,2695.6,2695.1,0.7507]
[1730301414399,4.1232254,2696.2,2695.2,0.07419593]
[1730301414586,3.70916,2696.1,2695.3,0.802]
[1730301414788,3.70924,2696.0,2695.5,0.802]
[1730301415828,3.70916,2696.1,2695.5,0.802]
[1730301416120,7.1232254,2696.5,2695.5,0.802]
[1730301416326,3.70886,2696.3,2695.6,0.0741875]
[1730301416527,3.70915,2696.1,2695.5,0.802]
[1730301416888,3.70926,2696.0,2695.5,0.802]
[1730301417526,7.41801,2696.2,2695.5,0.802]
[1730301417686,3.709,2696.2,2695.6,0.07418393]
[1730301417891,3.70913,2696.1,2695.6,0.07418393]
[1730301418113,3.70899,2696.2,2695.7,0.7563]
[1730301418431,3.70899,2696.2,2695.8,0.07417857]
[1730301418592,3.7093,2696.0,2695.7,0.7563]
[1730301418793,3.70934,2695.9,2695.7,0.7563]
[1730301419197,3.70947,2695.8,2695.7,0.7563]
[1730301419540,3.70996,2695.5,2695.1,0.7563]
[1730301419851,3.71004,2695.4,2695.1,0.7563]
[1730301420344,3.71024,2695.3,2695.1,0.7563]
[1730301420629,3.70997,2695.5,2695.1,0.7563]
[1730301420832,3.0,2695.8,2695.1,0.7563]
[1730301421035,3.71015,2695.4,2695.1,0.7563]
[1730301421548,3.70985,2695.6,2695.1,0.7563]
[1730301421843,3.70978,2695.6,2695.1,0.7563]
[1730301422140,3.71001,2695.5,2695.1,0.7563]
[1730301422336,3.70977,2695.6,2695.1,0.7563]
[1730301422841,3.71043,2695.1,2695.0,0.0536]
[1730301423933,6.71043,2695.1,2695.0,0.0536]
[1730301424440,7.49603,2695.1,2695.0,0.0536]
[1730301432452,6.71043,2695.1,2695.0,0.0536]
[1730301433128,3.71043,2695.1,2695.0,0.0536]
[1730301433948,3.71009,2695.4,2695.0,0.0536]
[1730301434341,3.70991,2695.5,2695.0,0.0536]
[1730301434530,3.70983,2695.6,2695.0,0.0536]
[1730301434858,3.70983,2695.6,2695.1,0.7679]
[1730301435030,3.70988,2695.5,2695.1,0.7679]
[1730301435437,3.70976,2695.6,2695.1,0.7679]
[1730301435628,3.70957,2695.8,2695.3,0.7679]
[1730301435629,3.70954,2695.8,2695.3,0.7679]
[1730301436036,3.70961,2695.7,2695.3,0.7679]
[1730301436420,3.70954,2695.8,2695.3,0.7679]
[1730301436624,3.70968,2695.7,2695.3,0.7679]
[1730301436850,3.70954,2695.8,2695.3,0.7679]
[1730301436851,3.70947,2695.8,2695.3,0.7679]
[1730301437162,3.71002,2695.4,2695.3,0.7679]
[1730301437657,3.7099,2695.5,2695.3,0.7679]
[1730301437853,3.70978,2695.6,2695.3,0.7679]
[1730301438066,7.41965,2695.6,2695.3,0.7679]
[1730301438227,3.70989,2695.5,2695.3,0.7679]
[1730301438636,3.71002,2695.4,2695.3,0.7679]
[1730301438926,3.71029,2695.2,2695.0,0.8158]
[1730301439122,3.71043,2695.1,2695.0,0.8158]
[1730301439346,0.7854,2695.7,2695.0,0.8158]
[1730301439347,3.70956,2695.8,2695.0,0.8158]
[1730301439535,3.70956,2695.8,2695.1,1.03902822]
[1730301439754,3.70956,2695.8,2695.2,0.8363923]
[1730301440065,3.7093,2696.0,2695.4,0.7622]
[1730301440233,3.70908,2696.1,2695.4,1.03902822]
[1730301440437,6.70901,2696.2,2695.4,1.03902822]
[1730301440438,3.70901,2696.2,2695.4,0.7622]
[1730301440748,3.70901,2696.2,2695.6,0.8155]
[1730301440929,3.70901,2696.2,2695.7,0.07418218]
[1730301441459,0.02,2697.6,2695.8,0.8225]
[1730301441624,3.70858,2696.5,2695.9,0.07416901]
[1730301441831,7.4174,2696.4,2695.8,0.8225]
[1730301442059,7.41741,2696.4,2695.8,0.8225]
[1730301442358,4.1232254,2696.6,2695.9,0.07417342]
[1730301442359,7.41695,2696.6,2695.9,0.07417342]
[1730301442545,3.70852,2696.5,2695.9,0.07417342]
[1730301442769,3.70846,2696.6,2696.0,0.8221]
[1730301442955,3.70814,2696.8,2696.1,0.07417209]
[1730301443330,3.70804,2696.9,2696.2,0.8221]
[1730301444273,3.70776,2697.1,2696.2,0.7796]
[1730301444476,3.70812,2696.8,2696.2,0.7796]
[1730301444762,3.70844,2696.6,2696.2,0.7796]
[1730301445173,3.70809,2696.8,2696.2,0.7796]
[1730301445491,3.70858,2696.5,2696.2,0.7796]
[1730301446568,3.70804,2696.9,2696.3,0.07417118]
[1730301446726,3.70791,2697.0,2696.4,0.7816]
[1730301446927,3.70791,2697.0,2696.5,0.07415717]
[1730301447145,3.70791,2697.0,2695.9,0.02]
[1730301447146,3.70783,2697.0,2696.6,0.7959]
[1730301447346,3.70796,2696.9,2696.6,0.7959]
[1730301447539,7.41556,2697.1,2696.6,0.7959]
[1730301447752,3.70808,2696.9,2696.6,0.7959]
[1730301447981,3.70823,2696.7,2696.6,0.7959]
[1730301448127,3.70865,2696.4,2696.3,0.755]
[1730301448562,7.41662,2696.7,2696.3,0.755]
[1730301448869,3.0,2696.8,2696.3,0.755]
[1730301449073,3.0,2696.8,2696.4,0.07416119]
[1730301449486,3.7075,2697.3,2696.5,0.755]
[1730301449645,3.70756,2697.2,2696.7,0.755]
[1730301450346,3.70756,2697.2,2696.8,0.07415008]
[1730301450882,3.70771,2697.1,2696.7,0.755]
[1730301451068,3.70702,2697.6,2696.7,0.755]
[1730301451069,3.70809,2696.8,2696.7,0.755]
[1730301452280,3.70809,2696.8,2695.7,0.06564742]
[1730301452281,4.1232254,2696.9,2696.0,0.7604]
[1730301452489,3.70865,2696.4,2696.0,0.7604]
[1730301452793,3.70866,2696.4,2696.0,0.7604]
[1730301452950,7.41743,2696.4,2696.0,0.7604]
[1730301453473,3.70866,2696.4,2696.0,0.7604]
[1730301454296,3.70851,2696.5,2696.0,0.7604]
[1730301454587,3.70851,2696.5,2696.1,0.07417123]
[1730301455093,3.70825,2696.7,2696.2,0.8141]
[1730301455248,3.70839,2696.6,2696.2,0.8141]
[1730301455781,3.70791,2697.0,2696.2,0.8141]
[1730301455982,4.1232254,2697.2,2696.4,0.8217]
[1730301456154,3.70821,2696.8,2696.5,0.07415955]
[1730301456360,3.70821,2696.8,2696.4,0.8217]
[1730301456600,3.70825,2696.7,2696.4,0.8217]
[1730301457304,3.7081,2696.8,2696.4,0.8217]
[1730301457880,6.70774,2697.1,2696.4,0.8217]
[1730301458286,10.41553,2697.1,2696.4,0.8217]
[1730301458492,3.70783,2697.0,2696.4,0.8217]
[1730301458689,3.70797,2696.9,2696.4,0.8217]
[1730301458992,6.70774,2697.1,2696.4,0.8217]
[1730301458993,3.70811,2696.8,2696.4,0.8217]
[1730301460201,3.70844,2696.6,2696.4,0.8217]
[1730301460402,7.4169,2696.6,2696.4,0.8217]
[1730301460592,3.70821,2696.8,2696.4,0.8217]
[1730301460789,3.70832,2696.7,2696.4,0.8217]
[1730301461092,3.70791,2697.0,2696.5,0.07416231]
[1730301461299,3.70764,2697.2,2696.2,0.8078]
[1730301461606,3.70764,2697.2,2696.4,0.7978]
[1730301461770,3.70775,2697.1,2696.4,0.7978]
[1730301462214,3.70707,2697.6,2696.6,0.01]
[1730301462365,3.70679,2697.8,2696.7,0.87193993]
[1730301462702,3.707,2697.6,2696.9,0.7978]
[1730301462873,3.707,2697.6,2697.1,0.7978]
[1730301463072,7.8296354,2698.1,2697.3,0.7978]
[1730301463073,3.70644,2698.1,2697.3,0.7978]
[1730301463372,3.70613,2698.3,2697.5,0.7978]
[1730301463592,3.70591,2698.4,2697.7,0.8036]
[1730301463907,3.70591,2698.4,2697.9,0.8036]
[1730301464110,3.70591,2698.4,2698.0,0.07411885]
[1730301464329,3.70591,2698.4,2698.0,0.07411874]
[1730301464624,3.70562,2698.6,2697.9,0.8036]
[1730301465116,3.70605,2698.3,2697.9,0.8036]
[1730301466015,7.4117,2698.5,2697.9,0.8036]
[1730301466192,3.7059,2698.4,2697.9,0.8572]
[1730301466784,3.70611,2698.3,2697.9,0.8572]
[1730301467120,3.70557,2698.7,2697.9,0.8572]
[1730301467604,3.70562,2698.6,2697.9,0.8572]
[1730301467916,3.70583,2698.5,2697.9,0.8572]
[1730301468120,3.7059,2698.4,2697.9,0.8572]
[1730301468323,3.70603,2698.3,2697.9,0.8572]
[1730301468620,7.1232254,2699.0,2697.9,0.8572]
[1730301468621,3.70631,2698.1,2697.9,0.8572]
[1730301468801,3.0,2698.9,2697.9,0.8572]
[1730301468802,3.70612,2698.3,2697.9,0.8572]
[1730301469317,3.70633,2698.1,2697.9,0.8572]
[1730301469524,3.70644,2698.0,2697.9,0.8572]
[1730301469885,3.70644,2698.0,2697.9,0.0536]
[1730301471417,6.70644,2698.0,2697.9,0.0536]
[1730301471631,6.70672,2697.8,2697.7,0.04988319]
[1730301471914,10.8299454,2697.8,2697.7,0.04988319]
[1730301472123,3.70768,2697.1,2697.0,0.7663]
[1730301472486,3.70736,2697.4,2697.0,0.7663]
[1730301472684,3.70761,2697.2,2697.0,0.7663]
[1730301472879,3.70741,2697.3,2697.0,0.7663]
[1730301473522,3.70768,2697.1,2697.0,0.7663]
[1730301474124,3.70811,2696.8,2696.5,0.7733]
[1730301474418,3.70763,2697.2,2696.6,0.07415873]
[1730301474624,3.70789,2697.0,2696.5,0.7733]
[1730301474800,3.70796,2696.9,2696.5,0.7733]
[1730301475122,3.70789,2697.0,2696.5,0.7733]
[1730301476502,3.70796,2696.9,2696.5,0.7733]
[1730301476696,3.70789,2697.0,2696.5,0.7733]
[1730301477031,3.70729,2697.4,2696.5,0.7733]
[1730301477327,11.6471554,2697.8,2696.2,0.90605165]
[1730301477328,3.70796,2696.9,2696.2,0.90605165]
[1730301477529,3.70871,2696.4,2696.2,0.90605165]
[1730301477709,3.70871,2696.4,2696.2,0.8319]
[1730301478021,3.70843,2696.6,2696.2,0.8319]
[1730301478227,4.1232254,2697.5,2696.3,0.07416624]
[1730301478400,3.8023,2697.7,2696.4,0.9033599]
[1730301478592,3.70713,2697.5,2696.4,0.8292]
[1730301478958,3.70775,2697.1,2696.4,0.8292]
[1730301479297,3.70786,2697.0,2696.4,0.8292]
[1730301479753,3.708,2696.9,2696.4,0.8292]
[1730301480404,3.70785,2697.0,2696.4,0.8292]
[1730301480606,3.70802,2696.9,2696.4,0.8292]
[1730301481305,3.70776,2697.1,2696.4,0.8292]
[1730301481838,3.70784,2697.0,2696.4,0.8292]
[1730301482029,3.70782,2697.0,2696.4,0.8292]
[1730301482230,3.70776,2697.1,2696.4,0.8292]
[1730301483202,3.70751,2697.3,2696.4,0.8292]
[1730301483203,3.70755,2697.2,2696.4,0.8292]
[1730301484313,3.70755,2697.2,2696.5,0.07414949]
[1730301484639,4.1232254,2697.8,2696.2,3.01]
[1730301484640,3.70737,2697.4,2696.6,0.7678]
[1730301484954,3.707,2697.6,2697.0,0.7678]
[1730301485120,3.70657,2698.0,2697.2,0.7678]
[1730301485313,3.70657,2698.0,2697.1,0.07413783]
[1730301485314,7.8287154,2698.7,2697.4,0.7678]
[1730301485658,3.7064,2698.1,2697.5,0.07412019]
[1730301485823,3.7064,2698.1,2697.4,0.7678]
[1730301486139,3.7064,2698.1,2697.5,0.07412438]
[1730301486343,7.41283,2698.1,2697.6,0.815]
[1730301486504,3.70562,2698.6,2697.6,0.815]
[1730301486505,3.70603,2698.3,2697.6,0.815]
[1730301486704,0.7852,2698.3,2697.6,0.815]
[1730301486913,3.70658,2698.0,2697.7,0.0741282]
[1730301487138,3.70661,2697.9,2697.6,0.815]
[1730301487511,3.70658,2697.9,2697.6,0.815]
[1730301488157,3.70686,2697.7,2697.0,0.3821]
[1730301488309,3.7071,2697.6,2697.3,0.8291]
[1730301488509,4.50218,2697.9,2697.3,0.8291]
[1730301488510,3.70726,2697.5,2697.3,0.8291]
[1730301488746,3.70726,2697.5,2697.4,7.4144]
[1730301489445,7.8304854,2697.5,2697.4,7.4144]
[1730301489610,12.1876854,2697.5,2697.4,7.4144]
[1730301490035,11.6376854,2697.5,2697.4,7.4144]
[1730301491829,12.1876854,2697.5,2697.4,7.4144]
[1730301492047,12.1876854,2697.5,2697.4,5.56076]
[1730301492248,3.70892,2696.2,2696.1,0.792]
[1730301492813,3.7088,2696.3,2696.1,0.792]
[1730301493157,3.70865,2696.4,2696.1,0.792]
[1730301493445,0.8228,2697.2,2696.2,0.07417187]
[1730301493661,3.70737,2697.4,2696.5,0.01]
[1730301493847,4.9236254,2697.6,2696.6,0.8048]
[1730301494152,3.70805,2696.9,2696.7,0.07415603]
[1730301494362,3.70805,2696.9,2696.6,0.8048]
[1730301494562,3.70823,2696.7,2696.6,0.8048]
[1730301494862,3.70805,2696.9,2696.6,0.8048]
[1730301495072,3.70805,2696.9,2695.7,0.05564742]
[1730301495073,0.7626,2696.9,2696.0,0.8058]
[1730301495366,3.70906,2696.1,2696.0,0.8058]
[1730301495566,0.7626,2696.9,2695.7,0.84394742]
[1730301495737,0.55,2697.2,2695.7,0.84394742]
[1730301495738,3.70829,2696.7,2695.9,0.7883]
[1730301495938,3.0,2697.3,2696.1,0.7883]
[1730301496131,4.1232254,2697.4,2696.3,0.7883]
[1730301496132,3.70791,2697.0,2696.3,0.7883]
[1730301496327,3.7082,2696.8,2696.4,0.07415848]
[1730301496527,3.7082,2696.8,2696.3,0.7883]
[1730301496757,3.70847,2696.6,2696.3,0.7883]
[1730301496940,3.70864,2696.4,2696.3,0.7883]
[1730301497156,7.41694,2696.6,2696.3,0.7883]
[1730301497427,0.8211,2697.0,2696.3,0.7883]
[1730301497428,3.70864,2696.4,2696.3,0.7883]
[1730301497629,3.70895,2696.2,2695.8,0.7719]
[1730301497849,3.70864,2696.4,2696.3,7.4174]
[1730301498642,3.70852,2696.5,2696.3,7.4174]
[1730301498845,3.70852,2696.5,2696.3,8.15914]
[1730301499367,3.70832,2696.7,2696.4,0.7504]
[1730301499551,3.0,2697.1,2696.5,7.417]
[1730301499871,3.7085,2696.6,2696.5,7.417]
[1730301500438,3.70825,2696.7,2696.5,7.417]
[1730301500641,3.70805,2696.9,2696.6,0.7417]
[1730301501159,3.70823,2696.7,2696.6,0.7417]
[1730301501455,3.70805,2696.9,2696.7,3.70827]
[1730301501665,3.70809,2696.8,2696.7,3.70827]
[1730301502378,4.46719,2696.8,2696.7,3.70827]
[1730301502584,11.5904154,2696.8,2696.7,3.70827]
[1730301503578,11.5904154,2696.8,2695.2,0.38387466]
[1730301503579,3.70906,2696.1,2695.2,0.38387466]
[1730301503877,3.70906,2696.1,2695.4,0.8002]
[1730301504095,0.7591,2696.2,2695.5,0.07418994]
[1730301504096,3.70946,2695.9,2695.5,0.07418994]
[1730301504380,3.70971,2695.7,2695.1,0.8002]
[1730301504563,3.71018,2695.3,2695.1,0.8002]
[1730301504771,3.71029,2695.2,2695.1,0.8002]
[1730301505074,0.7667,2695.8,2694.8,0.85690192]
[1730301505075,3.71012,2695.4,2694.8,0.85690192]
[1730301505304,0.7667,2696.4,2695.2,0.01]
[1730301505442,2.92030097,2696.0,2695.3,0.7817]
[1730301505643,3.70957,2695.8,2695.3,0.7817]
[1730301505941,3.70957,2695.8,2695.4,7.42]
[1730301506154,3.70957,2695.8,2695.5,0.82017]
[1730301506354,3.70925,2696.0,2695.5,0.82017]
[1730301506585,3.70935,2695.9,2695.6,7.4195]
[1730301507061,3.70961,2695.7,2695.6,7.4195]
[1730301508086,3.70949,2695.8,2695.6,7.4195]
[1730301508285,3.7094,2695.9,2695.7,0.74195]
[1730301508457,3.70879,2696.3,2695.7,0.74195]
[1730301508657,3.70879,2696.3,2695.8,7.4189]
[1730301508658,3.70893,2696.2,2695.8,7.4189]
[1730301509286,3.70913,2696.1,2695.8,7.4189]
[1730301509445,3.70894,2696.2,2695.9,0.816085]
[1730301509647,3.70853,2696.5,2695.9,0.816085]
[1730301509955,3.70834,2696.7,2696.1,0.7581]
[1730301510158,3.70778,2697.1,2696.2,0.07416612]
[1730301510361,3.7079,2697.0,2696.1,0.7581]
[1730301510603,3.7079,2697.0,2696.2,8.30960747]
[1730301510882,3.7079,2697.0,2696.3,0.85855741]
[1730301511070,3.70851,2696.5,2696.4,7.4173]
[1730301517601,3.70838,2696.6,2696.4,7.4173]
[1730301517833,3.70851,2696.5,2696.4,7.4173]
[1730301522676,7.53161,2696.5,2696.4,7.4173]
[1730301522829,8.08161,2696.5,2696.4,2e-05]
[1730301523152,3.71002,2695.4,2695.3,0.8133276]
[1730301523347,3.71002,2695.4,2695.3,0.0499276]
[1730301523520,3.7099,2695.5,2695.3,0.0499276]
[1730301524107,7.41986,2695.5,2695.3,0.0499276]
[1730301524306,3.71002,2695.4,2695.3,0.0499276]
[1730301524511,3.70989,2695.5,2695.3,0.0499276]
[1730301524816,3.70967,2695.7,2695.3,0.0499276]
[1730301525015,3.70928,2696.0,2695.4,0.8172]
[1730301525215,3.70928,2696.0,2695.5,0.0741845]
[1730301525444,3.70915,2696.1,2695.5,0.0741845]
[1730301525664,3.70915,2696.1,2695.4,0.8172]
[1730301526230,3.70921,2696.0,2695.4,0.8172]
[1730301526431,3.70915,2696.1,2695.4,0.8172]
[1730301526754,4.1232254,2696.6,2695.6,0.7721]
[1730301527051,3.70893,2696.2,2695.6,0.7721]
[1730301527760,3.70915,2696.1,2695.6,0.7721]
[1730301528196,3.70961,2695.7,2695.6,0.7721]
[1730301528359,3.70991,2695.5,2695.3,0.8378276]
[1730301528661,3.70968,2695.7,2695.3,0.8378276]
[1730301528847,3.70975,2695.6,2695.3,0.8378276]
[1730301529034,3.70975,2695.6,2695.4,7.4198]
[1730301529230,3.70968,2695.7,2695.5,0.82576276]
[1730301529434,3.70974,2695.6,2695.5,0.82576276]
[1730301529638,3.70968,2695.7,2695.6,3.70976]
[1730301529834,3.70949,2695.8,2695.6,3.70976]
[1730301530026,3.70961,2695.7,2695.6,3.70976]
[1730301531727,11.6642354,2695.7,2695.6,3.70976]
[1730301533647,3.71056,2695.1,2694.8,0.2764459]
[1730301533894,3.71057,2695.0,2694.7,0.826]
[1730301534878,7.9546254,2695.7,2694.8,7.49580944]
[1730301535084,3.70951,2695.8,2695.0,0.8215]
[1730301535257,3.70955,2695.8,2695.1,0.27683295]
[1730301535451,3.70955,2695.8,2695.2,0.27683295]
[1730301535759,3.70955,2695.8,2695.3,7.69713295]
[1730301535988,3.70969,2695.7,2695.4,1.04654625]
[1730301536169,3.70895,2696.2,2695.5,7.4198]
[1730301536373,3.70961,2695.7,2695.6,0.27683295]
[1730301536782,3.70961,2695.7,2695.6,7.69633295]
[1730301536989,3.70948,2695.8,2695.6,8.54293758]
[1730301537289,3.70948,2695.8,2695.7,0.27683295]
[1730301537489,3.70948,2695.8,2695.7,7.69603295]
[1730301537695,0.7916,2696.4,2695.7,8.46873295]
[1730301537861,3.70906,2696.1,2695.8,0.35101316]
[1730301538057,3.70878,2696.3,2695.9,0.89858459]
[1730301538058,3.70892,2696.2,2695.9,0.89858459]
[1730301538864,4.1232254,2696.6,2696.0,7.4184]
[1730301539058,3.7089,2696.3,2696.1,0.27683295]
[1730301539260,3.70892,2696.2,2696.1,0.27683295]
[1730301539659,3.70892,2696.2,2696.1,7.69493295]
[1730301539854,3.7089,2696.3,2696.1,8.5542847]
[1730301540090,3.70892,2696.2,2696.1,8.27745175]
[1730301540254,3.70858,2696.5,2696.1,8.27745175]
[1730301540456,3.70871,2696.4,2696.3,0.7869]
[1730301540696,3.70871,2696.4,2696.2,0.27695835]
[1730301540901,3.70878,2696.3,2696.2,0.27695835]
[1730301541108,4.1232254,2696.9,2696.2,0.27695835]
[1730301541255,3.70817,2696.8,2696.2,0.35112728]
[1730301541455,3.70779,2697.1,2696.3,1.06645835]
[1730301541689,3.70812,2696.8,2696.4,7.76841725]
[1730301541858,3.70812,2696.8,2696.5,0.35111888]
[1730301542196,0.7506,2697.4,2696.6,7.69365835]
[1730301542493,4.9227254,2698.1,2696.8,0.7883]
[1730301542655,4.9227254,2698.1,2697.0,0.7883]
[1730301542656,3.70719,2697.5,2697.0,0.7883]
[1730301542856,3.70719,2697.5,2697.1,0.07414267]
[1730301543097,0.7995,2698.1,2697.1,0.35110102]
[1730301543352,3.70683,2697.8,2697.2,1.06525835]
[1730301543638,3.70675,2697.8,2697.3,8.26286584]
[1730301543929,3.70675,2697.8,2697.4,0.27695835]
[1730301544511,3.70652,2698.0,2697.5,7.4143]
[1730301544833,4.16076231,2699.1,2697.7,0.7901]
[1730301544834,3.70637,2698.1,2697.7,0.7901]
[1730301545125,3.70628,2698.2,2697.8,0.07412418]
[1730301545327,3.70551,2698.7,2697.9,0.7901]
[1730301545528,3.70579,2698.5,2697.9,0.7901]
[1730301546236,3.70553,2698.7,2697.9,0.7901]
[1730301546405,3.70553,2698.7,2698.0,0.023806]
[1730301546406,3.70562,2698.6,2698.0,0.023806]
[1730301547133,3.70578,2698.5,2698.0,0.023806]
[1730301547317,8.6334954,2699.1,2698.0,0.023806]
[1730301547318,3.706,2698.4,2698.0,0.09791788]
[1730301547518,7.41202,2698.4,2698.1,0.07411724]
[1730301547690,3.706,2698.4,2698.1,0.07411724]
[1730301547899,3.706,2698.4,2698.0,0.023806]
[1730301547900,3.70599,2698.4,2698.0,0.023806]
[1730301548093,3.70611,2698.3,2698.0,0.023806]
[1730301548320,3.70599,2698.4,2698.0,0.09792463]
[1730301548521,3.70599,2698.4,2698.1,0.02380512]
[1730301549029,7.41202,2698.4,2698.1,0.02380512]
[1730301549232,3.70617,2698.2,2698.1,0.02380512]
[1730301549436,3.70604,2698.3,2698.1,0.02380512]
[1730301549745,3.70557,2698.7,2698.1,0.02380512]
[1730301549903,3.70585,2698.5,2698.1,0.02380512]
[1730301550698,3.70562,2698.6,2698.1,0.02380512]
[1730301551424,3.70578,2698.5,2698.2,0.7689]
[1730301551622,3.70552,2698.7,2698.2,0.7689]
[1730301551901,0.132316,2699.2,2698.4,0.7925]
[1730301552210,3.70509,2699.0,2698.4,0.7925]
[1730301552412,7.41029,2699.0,2698.4,0.7925]
[1730301552617,0.132316,2699.2,2698.4,0.7925]
[1730301552834,3.70543,2698.8,2698.4,0.7925]
[1730301553304,3.70513,2699.0,2698.4,0.7925]
[1730301553640,3.70515,2699.0,2698.4,0.7925]
[1730301553838,3.70524,2698.9,2698.4,0.7925]
[1730301554134,3.70538,2698.8,2698.4,0.7925]
[1730301554343,3.70617,2698.2,2698.1,0.83500512]
[1730301554579,3.70617,2698.2,2698.1,0.02380512]
[1730301555039,3.70617,2698.2,2697.8,0.768]
[1730301555040,3.70645,2698.0,2697.8,0.768]
[1730301555348,3.70686,2697.7,2697.6,0.74143]
[1730301555503,3.70699,2697.6,2697.5,7.4143]
[1730301555698,3.70687,2697.7,2697.5,7.4143]
[1730301556012,7.41308,2698.0,2697.5,7.4143]
[1730301556337,3.7066,2697.9,2697.5,7.4143]
[1730301556537,3.70645,2698.0,2697.6,0.82379157]
[1730301556712,0.7597,2698.9,2697.7,0.794]
[1730301556922,3.70617,2698.2,2697.7,0.794]
[1730301557457,3.70642,2698.1,2697.8,0.07412034]
[1730301557616,3.7064,2698.1,2697.7,0.794]
[1730301558021,7.4128,2698.1,2697.7,0.794]
[1730301558255,3.70645,2698.0,2697.7,0.794]
[1730301558918,3.70599,2698.4,2697.8,0.07412615]
[1730301559239,3.70599,2698.4,2697.7,0.794]
[1730301559444,3.70599,2698.4,2697.9,7.4132]
[1730301560156,3.70599,2698.4,2698.0,0.8094]
[1730301560327,3.70568,2698.6,2698.0,0.8094]
[1730301560655,3.70569,2698.6,2698.1,7.4126]
[1730301560832,3.70578,2698.5,2698.2,0.8222]
[1730301561031,3.70584,2698.5,2698.2,0.8222]
[1730301561630,3.70603,2698.3,2698.2,0.8222]
[1730301561849,3.70603,2698.3,2698.1,7.4126]
[1730301561850,3.70617,2698.2,2698.1,7.4126]
[1730301563026,3.70603,2698.3,2698.1,7.4126]
[1730301563390,3.70585,2698.5,2698.1,7.4126]
[1730301563651,7.41169,2698.5,2698.2,0.07411454]
[1730301563959,3.70584,2698.5,2698.3,0.74867145]
[1730301564444,3.70561,2698.7,2698.4,0.7954]
[1730301564819,3.70562,2698.6,2698.4,0.7954]
[1730301565260,10.8281754,2699.1,2698.4,0.7954]
[1730301565458,3.70574,2698.6,2698.4,0.7954]
[1730301566455,3.70542,2698.8,2698.4,0.7954]
[1730301566456,3.70549,2698.7,2698.4,0.7954]
[1730301566663,3.70549,2698.7,2698.5,0.07410757]
[1730301566849,7.41061,2698.9,2698.5,0.07410757]
[1730301567047,3.7053,2698.9,2698.5,0.07410757]
[1730301567250,3.70502,2699.1,2698.5,0.07410757]
[1730301567449,3.70502,2699.1,2698.4,0.7954]
[1730301567650,3.70502,2699.1,2698.6,7.4113]
[1730301568371,3.70521,2698.9,2698.6,7.4113]
[1730301568664,7.41053,2698.9,2698.6,7.4113]
[1730301568866,3.70535,2698.8,2698.6,7.4113]
[1730301569230,3.7052,2699.0,2698.6,7.4113]
[1730301569430,3.70504,2699.1,2698.7,0.79363031]
[1730301569697,3.70521,2698.9,2698.8,0.07409883]
[1730301569879,3.70535,2698.8,2698.7,0.79363031]
[1730301570430,3.70535,2698.8,2698.6,7.4113]
[1730301570731,3.70548,2698.7,2698.6,7.4113]
[1730301573474,4.46018,2698.7,2698.6,7.4113]
[1730301573821,7.46018,2698.7,2698.6,6e-05]
[1730301574916,3.70696,2697.7,2697.4,0.08058192]
[1730301575207,3.70707,2697.6,2697.4,0.08058192]
[1730301575610,3.70696,2697.7,2697.4,0.12975201]
[1730301575778,3.70696,2697.7,2697.4,0.05561568]
[1730301576271,3.70696,2697.7,2697.5,0.07413497]
[1730301576479,3.70696,2697.7,2697.5,0.07277494]
[1730301576699,7.8294154,2698.2,2697.4,0.05561568]
[1730301576874,3.70692,2697.7,2697.4,0.05561568]
[1730301577074,3.707,2697.6,2697.4,0.05561568]
[1730301577288,3.70713,2697.5,2697.4,0.05561568]
[1730301577717,7.41412,2697.6,2697.4,0.05561568]
[1730301577932,3.70708,2697.6,2697.4,0.05561568]
[1730301578225,7.41415,2697.6,2697.4,0.05561568]
[1730301578536,3.70823,2696.7,2696.4,0.7697]
[1730301579013,3.70841,2696.6,2696.4,0.7697]
[1730301579734,3.70823,2696.7,2696.4,0.7697]
[1730301579917,3.70805,2696.9,2696.4,0.7697]
[1730301580117,3.70803,2696.9,2696.4,0.7697]
[1730301580301,3.70783,2697.0,2696.5,0.07415642]
[1730301580507,3.70768,2697.1,2696.4,0.7697]
[1730301580717,3.70759,2697.2,2696.4,0.7697]
[1730301581093,3.70783,2697.0,2696.4,0.7697]
[1730301581491,3.70797,2696.9,2696.4,0.7697]
[1730301581730,3.70845,2696.6,2696.4,0.7697]
[1730301581945,3.70851,2696.5,2696.4,1.14667]
[1730301582140,3.70892,2696.2,2696.1,0.797]
[1730301582605,3.70879,2696.3,2696.1,0.797]